fUST/lending_fUST_20250218
["ID","MTS","AMOUNT","RATE_DAILY","PERIOD"]
[353499105,1739887832736,-501.83046628,0.00013877,2]
[353499107,1739887832746,-500.0,0.00013877,2]
[353499109,1739887832756,-478.16417323,0.00013877,2]
[353499111,1739887832768,-500.0,0.00013877,2]
[353499114,1739887832777,-500.0,0.00013877,2]
[353499116,1739887832787,-500.0,0.00013877,2]
[353499118,1739887832797,-206.66931169,0.00013877,2]
[353499120,1739887832808,-500.0,0.00013878,2]
[353499122,1739887832817,-500.0,0.00013878,2]
[353499124,1739887832827,-500.0,0.00013878,2]
[353499126,1739887832836,-627.30091157,0.00013878,2]
[353499128,1739887832846,-500.0,0.00013878,2]
[353499130,1739887832855,-508.50828585,0.00013878,2]
[353499131,1739887832865,-500.0,0.00013878,2]
[353499134,1739887832875,-500.0,0.00013878,2]
[353499136,1739887832886,-500.0,0.00013878,2]
[353499138,1739887832896,-500.0,0.00013878,2]
[353499140,1739887832905,-633.75127506,0.00013878,2]
[353499142,1739887832914,-532.81869721,0.00013878,2]
[353499144,1739887832923,-500.0,0.00013878,2]
[353499146,1739887832938,-503.3606704,0.00013878,2]
[353499148,1739887832947,-500.0,0.00013878,2]
[353499150,1739887832957,-500.0,0.00013878,2]
[353499152,1739887832966,-500.0,0.00013878,2]
[353499154,1739887832975,-509.15337383,0.00013878,2]
[353499156,1739887832985,-229.8494914,0.00013878,2]
[353499158,1739887832994,-500.0,0.00013878,2]
[353499159,1739887833004,-502.3328953,0.00013878,2]
[353499161,1739887833013,-500.0,0.00013878,2]
[353499163,1739887833023,-500.0,0.00013878,2]
[353499165,1739887833033,-506.73045002,0.00013878,2]
[353499167,1739887833043,-500.0,0.00013878,2]
[353499170,1739887833057,-500.0,0.00013878,2]
[353499172,1739887833068,-500.0,0.00013878,2]
[353499174,1739887833078,-500.0,0.00013878,2]
[353499175,1739887833088,-500.0,0.00013878,2]
[353499177,1739887833099,-500.0,0.00013878,2]
[353499179,1739887833109,-500.0,0.00013878,2]
[353499181,1739887833119,-203.64928317,0.00013878,2]
[353499182,1739887833129,-500.0,0.00013878,2]
[353499183,1739887833139,-500.0,0.00013878,2]
[353499184,1739887833149,-500.0,0.00013878,2]
[353499185,1739887833159,-506.83110241,0.00013878,2]
[353499186,1739887833168,-500.0,0.00013878,2]
[353499187,1739887833180,-500.0,0.00013878,2]
[353499188,1739887833190,-500.0,0.00013878,2]
[353499189,1739887833200,-507.46210843,0.00013878,2]
[353499190,1739887833211,-523.26795905,0.00013878,2]
[353499191,1739887833220,-500.0,0.00013878,2]
[353499192,1739887833230,-500.0,0.00013878,2]
[353499193,1739887833240,-500.0,0.00013878,2]
[353499194,1739887833250,-500.0,0.00013878,2]
[353499195,1739887833260,-500.0,0.00013878,2]
[353499196,1739887833270,-500.0,0.00013878,2]
[353499197,1739887833280,-500.0,0.00013878,2]
[353499198,1739887833290,-500.0,0.00013878,2]
[353499199,1739887833299,-500.0,0.00013878,2]
[353499200,1739887833309,-500.0,0.00013878,2]
[353499201,1739887833319,-500.0,0.00013878,2]
[353499202,1739887833329,-500.0,0.00013878,2]
[353499203,1739887833339,-500.0,0.00013878,2]
[353499204,1739887833348,-500.0,0.00013878,2]
[353499205,1739887833358,-500.0,0.00013878,2]
[353499206,1739887833367,-500.0,0.00013878,2]
[353499207,1739887833377,-500.0,0.00013878,2]
[353499208,1739887833386,-500.0,0.00013878,2]
[353499209,1739887833396,-500.0,0.00013878,2]
[353499210,1739887833405,-500.0,0.00013878,2]
[353499211,1739887833415,-500.0,0.00013878,2]
[353499212,1739887833424,-500.0,0.00013878,2]
[353499213,1739887833439,-214.43335683,0.00013878,2]
[353499214,1739887833449,-500.0,0.00013878,2]
[353499215,1739887833459,-500.0,0.00013878,2]
[353499216,1739887833469,-500.0,0.00013878,2]
[353499217,1739887833478,-500.0,0.00013878,2]
[353499218,1739887833488,-500.0,0.00013878,2]
[353499219,1739887833497,-500.0,0.00013878,2]
[353499220,1739887833508,-500.0,0.00013878,2]
[353499221,1739887833518,-523.65978823,0.00013878,2]
[353499222,1739887833528,-500.0,0.00013878,2]
[353499223,1739887833538,-500.0,0.00013878,2]
[353499224,1739887833548,-500.0,0.00013878,2]
[353499225,1739887833558,-500.0,0.00013878,2]
[353499226,1739887833568,-504.04029848,0.00013878,2]
[353499227,1739887833578,-503.53245811,0.00013878,2]
[353499228,1739887833588,-500.0,0.00013878,2]
[353499229,1739887833597,-505.90644954,0.00013878,2]
[353499230,1739887833607,-500.0,0.00013878,2]
[353499231,1739887833617,-506.65190305,0.00013878,2]
[353499232,1739887833627,-500.0,0.00013878,2]
[353499233,1739887833637,-502.66768258,0.00013878,2]
[353499234,1739887833647,-500.0,0.00013878,2]
[353499235,1739887833657,-558.65,0.00013878,2]
[353499236,1739887833667,-500.0,0.00013878,2]
[353499237,1739887833680,-500.0,0.00013878,2]
[353499238,1739887833690,-500.0,0.00013878,2]
[353499239,1739887833700,-500.0,0.00013878,2]
[353499240,1739887833710,-500.0,0.00013878,2]
[353499241,1739887833721,-216.99641848,0.00013878,2]
[353499242,1739887833730,-339.2364921,0.00013878,2]
[353499243,1739887833740,-167.66675015,0.00013878,2]
[353499244,1739887833750,-500.0,0.00013878,2]
[353499245,1739887833760,-501.87346695,0.00013878,2]
[353499246,1739887833771,-500.0,0.00013878,2]
[353499247,1739887833780,-500.0,0.00013878,2]
[353499248,1739887833791,-500.0,0.00013878,2]
[353499249,1739887833800,-500.0,0.00013878,2]
[353499250,1739887833810,-500.0,0.00013878,2]
[353499251,1739887833820,-500.0,0.00013878,2]
[353499252,1739887833830,-522.27245316,0.00013878,2]
[353499253,1739887833840,-500.0,0.00013878,2]
[353499254,1739887833850,-500.0,0.00013878,2]
[353499255,1739887833860,-500.0,0.00013878,2]
[353499256,1739887833870,-274.04495518,0.00013878,2]
[353499257,1739887833880,-504.62,0.00013878,2]
[353499258,1739887833890,-230.14872455,0.00013878,2]
[353499259,1739887833900,-500.0,0.00013879,2]
[353499260,1739887833910,-500.0,0.00013879,2]
[353499261,1739887833920,-282.69109734,0.0001388,2]
[353499262,1739887833931,-500.0,0.0001388,2]
[353499263,1739887833941,-1005.80519897,0.0001388,2]
[353499264,1739887833950,-277.37804486,0.00013941,2]
[353499265,1739887833961,-799.11,0.00013957,2]
[353499266,1739887833970,-500.0,0.00013957,2]
[353499267,1739887833980,-1192.17,0.00013957,2]
[353499268,1739887833989,-816.65,0.00013958,2]
[353499269,1739887833999,-500.0,0.00013958,2]
[353499270,1739887834009,-500.0,0.00013958,2]
[353499271,1739887834018,-320.95,0.00013958,2]
[353499272,1739887834028,-1126.42,0.00013958,2]
[353499273,1739887834037,-500.0,0.00013958,2]
[353499274,1739887834052,-731.32,0.00013958,2]
[353499275,1739887834062,-1528.41,0.00013958,2]
[353499276,1739887834071,-500.0,0.00013958,2]
[353499277,1739887834082,-500.0,0.00013958,2]
[353499278,1739887834093,-500.0,0.00013958,2]
[353499279,1739887834103,-896.88,0.00013958,2]
[353499280,1739887834112,-500.0,0.00013958,2]
[353499281,1739887834122,-500.0,0.00013958,2]
[353499282,1739887834133,-500.0,0.00013958,2]
[353499283,1739887834143,-500.0,0.00013958,2]
[353499284,1739887834152,-349.72675235,0.00013958,2]
[353499285,1739887834162,-3471.77,0.00013958,2]
[353499286,1739887834171,-500.0,0.00013958,2]
[353499287,1739887834183,-500.0,0.00013958,2]
[353499288,1739887834193,-544.63,0.00013958,2]
[353499289,1739887834202,-6697.38,0.00013958,2]
[353499290,1739887834212,-500.0,0.00013958,2]
[353499291,1739887834222,-500.0,0.00013958,2]
[353499292,1739887834232,-12640.19,0.00013958,2]
[353499293,1739887834241,-1008.91,0.00013958,2]
[353499294,1739887834250,-1758.80677548,0.00013958,2]
[353499295,1739887834265,-223.76322452,0.00013958,2]
[353499296,1739887834275,-500.0,0.00013958,2]
[353499297,1739887834284,-110.06375548,0.00013958,2]
[353499298,1739887834331,-500.0,0.00013875,2]
[353499299,1739887834341,-500.0,0.00013875,2]
[353499300,1739887834351,-500.0,0.00013875,2]
[353499301,1739887834361,-1088.20624452,0.00013958,2]
[353499302,1739887834449,-500.0,0.00013959,2]
[353499303,1739887834474,-756.99375548,0.0001396,2]
[353499339,1739887837640,-500.0,0.00013875,2]
[353499341,1739887837649,-500.0,0.00013875,2]
[353499343,1739887837659,-500.0,0.00013875,2]
[353499345,1739887837669,-500.0,0.00013875,2]
[353499347,1739887837678,-650.54537033,0.00013875,2]
[353499349,1739887837688,-500.0,0.00013875,2]
[353499351,1739887837697,-242.73169759,0.00013875,2]
[353499357,1739887837742,-257.26830241,0.00013875,2]
[353499359,1739887837751,-500.0,0.00013875,2]
[353499361,1739887837760,-4083.11014577,0.0001396,2]
[353499384,1739887839949,-2000.0,0.0001375,2]
[353499385,1739887839960,-748.6,0.00013875,2]
[353499386,1739887839970,-748.6,0.00013957,2]
[353499387,1739887839980,-1071.93106193,0.0001396,2]
[353499388,1739887839989,-563.359996,0.0001396,2]
[353499389,1739887839999,-500.0,0.0001396,2]
[353499390,1739887840008,-500.0,0.0001396,2]
[353499391,1739887840018,-500.0,0.0001396,2]
[353499392,1739887840028,-500.0,0.0001396,2]
[353499393,1739887840037,-500.0,0.0001396,2]
[353499394,1739887840049,-500.0,0.0001396,2]
[353499395,1739887840059,-299.44978737,0.0001396,2]
[353499396,1739887840071,-200.55021263,0.0001396,2]
[353499397,1739887840080,-500.0,0.0001396,2]
[353499398,1739887840091,-500.0,0.0001396,2]
[353499399,1739887840101,-500.0,0.0001396,2]
[353499400,1739887840111,-500.0,0.0001396,2]
[353499401,1739887840120,-263.44978737,0.0001396,2]
[353499417,1739887842760,-236.55021263,0.0001396,2]
[353499418,1739887842770,-151.0,0.0001396,2]
[353499420,1739887842780,-500.0,0.0001396,2]
[353499421,1739887842789,-500.0,0.0001396,2]
[353499422,1739887842798,-500.0,0.0001396,2]
[353499423,1739887842808,-40.46812763,0.0001396,2]
[353499424,1739887842851,-459.53187237,0.0001396,2]
[353499426,1739887842861,-500.0,0.0001396,2]
[353499427,1739887842871,-583.42,0.0001396,2]
[353499428,1739887842880,-500.0,0.0001396,2]
[353499429,1739887842889,-500.0,0.0001396,2]
[353499430,1739887842899,-500.0,0.0001396,2]
[353499431,1739887842908,-500.0,0.0001396,2]
[353499432,1739887842917,-500.0,0.0001396,2]
[353499433,1739887842927,-500.0,0.0001396,2]
[353499434,1739887842937,-500.0,0.0001396,2]
[353499435,1739887842946,-500.0,0.0001396,2]
[353499436,1739887842956,-559.36,0.0001396,2]
[353499437,1739887842965,-467.96519515,0.0001396,2]
[353499438,1739887842975,-500.0,0.0001396,2]
[353499439,1739887842984,-151.0,0.0001396,2]
[353499440,1739887842993,-151.0,0.0001396,2]
[353499441,1739887843002,-500.0,0.0001396,2]
[353499442,1739887843012,-500.0,0.0001396,2]
[353499443,1739887843021,-126.67253908,0.0001396,2]
[353499454,1739887845779,-500.0,0.0001396,2]
[353499455,1739887845790,-350.61337683,0.0001396,2]
[353499456,1739887845800,-151.0,0.0001396,2]
[353499457,1739887845809,-208.85232312,0.0001396,2]
[353499458,1739887845821,-161.18767688,0.0001396,2]
[353499459,1739887845831,-500.0,0.0001396,2]
[353499460,1739887845841,-500.0,0.0001396,2]
[353499461,1739887845851,-500.0,0.00013961,2]
[353499462,1739887845860,-151.0,0.00013963,2]
[353499463,1739887845870,-196.01232312,0.00013963,2]
[353499474,1739887998656,400.0,9.041e-05,2]
[353499500,1739888836120,-686.13355173,0.00012146,2]
[353499501,1739888840135,-113.86644827,0.00012146,2]
[353499502,1739888840157,-167.33672239,0.00012269,2]
[353499503,1739888843124,-313.00943283,0.00012269,2]
[353499504,1739888843146,-158.8405508,0.00012876,2]
[353499505,1739888843169,-781.50280353,0.00013068,2]
[353499506,1739888844088,-118.49719647,0.00013068,2]
[353499507,1739888844110,-889.9246865,0.00013847,2]
[353499508,1739888844131,-151.0,0.00013867,2]
[353499509,1739888844153,-300.0,0.00013872,2]
[353499510,1739888844177,-500.0,0.00013873,2]
[353499511,1739888844199,-144.09671347,0.00013873,2]
[353499525,1739888913335,310.57276771,0.0001,7]
[353499557,1739889032120,-433.8591904,0.0001291,2]
[353499558,1739889032224,-66.1408096,0.0001291,2]
[353499559,1739889032234,-445.1830682,0.00012911,2]
[353499560,1739889032243,-306.87961501,0.00013068,2]
[353499561,1739889032255,-493.12038499,0.00013068,2]
[353499562,1739889032264,-593.2831243,0.00013847,2]
[353499563,1739889032273,-151.0,0.00013867,2]
[353499564,1739889032283,-300.0,0.00013872,2]
[353499565,1739889032293,-355.90328653,0.00013873,2]
[353499566,1739889032302,-500.0,0.00013873,2]
[353499567,1739889032311,-409.55957818,0.00013873,2]
[353499568,1739889032320,-500.0,0.00013873,2]
[353499569,1739889032329,-1560.87119986,0.00013873,2]
[353499570,1739889032341,-2557.07880014,0.00013873,2]
[353499571,1739889032350,-500.0,0.00013873,2]
[353499572,1739889032359,-500.0,0.00013873,2]
[353499573,1739889032369,-500.0,0.00013873,2]
[353499574,1739889032378,-1293.57,0.00013873,2]
[353499575,1739889032388,-271.34842321,0.00013873,2]
[353499616,1739889037983,-212.17328647,0.00013872,2]
[353499618,1739889037993,-228.65157679,0.00013873,2]
[353499620,1739889038003,-500.0,0.00013873,2]
[353499622,1739889038012,-500.0,0.00013873,2]
[353499624,1739889038021,-500.0,0.00013873,2]
[353499626,1739889038030,-500.0,0.00013873,2]
[353499628,1739889038039,-500.0,0.00013873,2]
[353499630,1739889038048,-1321.35,0.00013873,2]
[353499632,1739889038057,-500.0,0.00013873,2]
[353499634,1739889038068,-170.8573173,0.00013873,2]
[353499637,1739889038079,-329.1426827,0.00013873,2]
[353499639,1739889038088,-784.81,0.00013873,2]
[353499641,1739889038097,-500.0,0.00013873,2]
[353499643,1739889038106,-544.44,0.00013873,2]
[353499645,1739889038116,-500.0,0.00013873,2]
[353499647,1739889038125,-500.0,0.00013873,2]
[353499648,1739889038134,-500.0,0.00013873,2]
[353499651,1739889038144,-1116.13,0.00013873,2]
[353499653,1739889038152,-500.0,0.00013873,2]
[353499655,1739889038162,-212.49614043,0.00013873,2]
[353499658,1739889038173,-287.50385957,0.00013873,2]
[353499660,1739889038182,-500.0,0.00013873,2]
[353499662,1739889038191,-500.0,0.00013873,2]
[353499664,1739889038201,-500.0,0.00013873,2]
[353499666,1739889038210,-1467.15,0.00013873,2]
[353499668,1739889038221,-500.0,0.00013873,2]
[353499670,1739889038230,-3429.91,0.00013873,2]
[353499672,1739889038239,-1436.38,0.00013873,2]
[353499674,1739889038248,-500.0,0.00013873,2]
[353499676,1739889038258,-314.76642109,0.00013873,2]
[353499678,1739889038269,-185.23357891,0.00013873,2]
[353499680,1739889038278,-314.76642109,0.00013873,2]
[353499682,1739889038290,-185.23357891,0.00013873,2]
[353499684,1739889038298,-500.0,0.00013873,2]
[353499686,1739889038307,-500.0,0.00013873,2]
[353499688,1739889038316,-500.0,0.00013873,2]
[353499690,1739889038325,-2094.17,0.00013873,2]
[353499692,1739889038334,-830.8,0.00013873,2]
[353499694,1739889038344,-952.08,0.00013873,2]
[353499696,1739889038353,-500.0,0.00013873,2]
[353499698,1739889038363,-539.57,0.00013873,2]
[353499700,1739889038372,-358.53984357,0.00013873,2]
[353499703,1739889038383,-141.46015643,0.00013873,2]
[353499705,1739889038392,-500.0,0.00013873,2]
[353499707,1739889038401,-15.07878226,0.00013873,2]
[353499709,1739889038412,-484.92121774,0.00013873,2]
[353499711,1739889038422,-500.0,0.00013873,2]
[353499713,1739889038431,-2148.27,0.00013873,2]
[353499715,1739889038442,-569.52,0.00013873,2]
[353499717,1739889038452,-500.0,0.00013873,2]
[353499719,1739889038461,-500.0,0.00013873,2]
[353499721,1739889038471,-231.51120401,0.00013874,2]
[353499723,1739889038480,-500.0,0.00013874,2]
[353499725,1739889038489,-500.0,0.00013874,2]
[353499727,1739889038499,-500.0,0.00013874,2]
[353499729,1739889038508,-500.0,0.00013874,2]
[353499731,1739889038517,-500.0,0.00013874,2]
[353499733,1739889038528,-500.0,0.00013874,2]
[353499735,1739889038540,-500.0,0.00013874,2]
[353499737,1739889038549,-500.0,0.00013874,2]
[353499739,1739889038559,-418.27897876,0.00013874,2]
[353499741,1739889038569,-500.0,0.00013874,2]
[353499743,1739889038581,-500.0,0.00013874,2]
[353499745,1739889038590,-500.0,0.00013874,2]
[353499747,1739889038599,-503.67824756,0.00013874,2]
[353499749,1739889038609,-500.0,0.00013874,2]
[353499751,1739889038619,-500.0,0.00013874,2]
[353499753,1739889038628,-500.0,0.00013874,2]
[353499755,1739889038637,-500.0,0.00013874,2]
[353499757,1739889038647,-269.45917868,0.00013874,2]
[353499759,1739889038656,-500.0,0.00013874,2]
[353499761,1739889038665,-500.0,0.00013874,2]
[353499763,1739889038675,-502.92795177,0.00013874,2]
[353499765,1739889038684,-500.0,0.00013874,2]
[353499767,1739889038693,-500.0,0.00013874,2]
[353499769,1739889038702,-500.0,0.00013874,2]
[353499771,1739889038712,-500.0,0.00013874,2]
[353499773,1739889038723,-500.0,0.00013874,2]
[353499775,1739889038732,-500.0,0.00013874,2]
[353499777,1739889038741,-500.0,0.00013874,2]
[353499779,1739889038750,-513.79,0.00013874,2]
[353499781,1739889038759,-500.0,0.00013874,2]
[353499783,1739889038768,-500.0,0.00013874,2]
[353499785,1739889038778,-500.0,0.00013874,2]
[353499787,1739889038787,-500.0,0.00013874,2]
[353499789,1739889038796,-500.0,0.00013874,2]
[353499791,1739889038806,-500.0,0.00013874,2]
[353499793,1739889038815,-500.0,0.00013874,2]
[353499795,1739889038824,-500.0,0.00013874,2]
[353499797,1739889038833,-500.0,0.00013874,2]
[353499799,1739889038843,-500.0,0.00013874,2]
[353499801,1739889038852,-500.0,0.00013874,2]
[353499804,1739889038862,-500.0,0.00013874,2]
[353499805,1739889038871,-500.0,0.00013874,2]
[353499807,1739889038880,-500.0,0.00013874,2]
[353499809,1739889038889,-500.0,0.00013874,2]
[353499811,1739889038899,-500.0,0.00013874,2]
[353499813,1739889038908,-500.0,0.00013874,2]
[353499815,1739889038917,-614.77396261,0.00013874,2]
[353499817,1739889038927,-500.0,0.00013874,2]
[353499819,1739889038937,-500.0,0.00013874,2]
[353499821,1739889038946,-500.0,0.00013874,2]
[353499824,1739889038956,-500.0,0.00013874,2]
[353499825,1739889038965,-500.0,0.00013874,2]
[353499827,1739889038975,-500.0,0.00013874,2]
[353499829,1739889038984,-500.0,0.00013874,2]
[353499831,1739889038993,-574.30803401,0.00013874,2]
[353499967,1739889040202,-49.23425041,0.00013874,2]
[353499969,1739889040212,-500.0,0.00013874,2]
[353499971,1739889040223,-330.06,0.00013874,2]
[353499973,1739889040232,-500.0,0.00013874,2]
[353499975,1739889040241,-500.0,0.00013874,2]
[353499977,1739889040250,-500.0,0.00013874,2]
[353499979,1739889040259,-500.0,0.00013874,2]
[353499981,1739889040268,-572.59,0.00013874,2]
[353499983,1739889040278,-500.0,0.00013874,2]
[353499985,1739889040288,-500.0,0.00013874,2]
[353499987,1739889040297,-437.5,0.00013874,2]
[353499989,1739889040306,-21.53606904,0.00013874,2]
[353499991,1739889040318,-478.46393096,0.00013874,2]
[353499993,1739889040328,-500.0,0.00013874,2]
[353499995,1739889040338,-261.3,0.00013874,2]
[353499997,1739889040347,-389.52,0.00013874,2]
[353499999,1739889040356,-500.0,0.00013874,2]
[353500001,1739889040365,-500.0,0.00013874,2]
[353500003,1739889040374,-561.56,0.00013874,2]
[353500005,1739889040383,-4672.54512739,0.00013874,2]
[353500008,1739889040395,-8578.67487261,0.00013874,2]
[353500010,1739889040404,-3808.81,0.00013874,2]
[353500012,1739889040413,-500.0,0.00013874,2]
[353500014,1739889040422,-1028.19,0.00013874,2]
[353500016,1739889040431,-1118.99,0.00013874,2]
[353500018,1739889040441,-501.82936904,0.00013874,2]
[353500019,1739889040450,-500.0,0.00013874,2]
[353500022,1739889040460,-542.07,0.00013874,2]
[353500024,1739889040469,-500.0,0.00013874,2]
[353500025,1739889040478,-500.0,0.00013874,2]
[353500028,1739889040488,-383.48,0.00013874,2]
[353500029,1739889040498,-500.0,0.00013874,2]
[353500031,1739889040507,-500.0,0.00013874,2]
[353500033,1739889040516,-500.0,0.00013874,2]
[353500036,1739889040529,-500.0,0.00013874,2]
[353500038,1739889040538,-500.0,0.00013874,2]
[353500040,1739889040547,-500.0,0.00013874,2]
[353500042,1739889040557,-500.0,0.00013874,2]
[353500044,1739889040566,-500.0,0.00013874,2]
[353500046,1739889040577,-500.0,0.00013874,2]
[353500048,1739889040586,-500.0,0.00013874,2]
[353500050,1739889040596,-500.0,0.00013874,2]
[353500052,1739889040605,-531.61078871,0.00013874,2]
[353500053,1739889040615,-911.88,0.00013874,2]
[353500055,1739889040624,-6776.13,0.00013874,2]
[353500067,1739889040710,-471.14815148,0.00013874,2]
[353500069,1739889040739,-829.81,0.00013874,2]
[353500072,1739889040749,-502.35309799,0.00013874,2]
[353500074,1739889040759,-500.0,0.00013874,2]
[353500076,1739889040769,-556.86,0.00013874,2]
[353500078,1739889040778,-198.32,0.00013874,2]
[353500080,1739889040787,-500.0,0.00013874,2]
[353500082,1739889040797,-500.0,0.00013874,2]
[353500084,1739889040806,-500.0,0.00013874,2]
[353500086,1739889040816,-500.0,0.00013874,2]
[353500088,1739889040826,-500.0,0.00013874,2]
[353500090,1739889040836,-578.11,0.00013874,2]
[353500092,1739889040845,-500.0,0.00013875,2]
[353500094,1739889040854,-500.0,0.00013875,2]
[353500096,1739889040864,-500.0,0.00013875,2]
[353500098,1739889040873,-553.21,0.00013875,2]
[353500100,1739889040883,-536.45,0.00013875,2]
[353500102,1739889040892,-201.74,0.00013875,2]
[353500104,1739889040901,-500.0,0.00013875,2]
[353500106,1739889040910,-254.84176567,0.00013938,2]
[353500108,1739889040919,-500.0,0.00013955,2]
[353500110,1739889040928,-4117.95,0.00013955,2]
[353500112,1739889040938,-1293.57,0.00013955,2]
[353500114,1739889040947,-500.0,0.00013955,2]
[353500116,1739889040957,-500.0,0.00013955,2]
[353500118,1739889040966,-1321.35,0.00013955,2]
[353500120,1739889040979,-784.81,0.00013955,2]
[353500122,1739889040988,-500.0,0.00013955,2]
[353500124,1739889040997,-544.44,0.00013955,2]
[353500126,1739889041007,-1014.45514886,0.00013955,2]
[353500129,1739889041019,-101.67485114,0.00013955,2]
[353500131,1739889041029,-500.0,0.00013955,2]
[353500133,1739889041039,-500.0,0.00013955,2]
[353500135,1739889041049,-445.1111494,0.00013955,2]
[353500137,1739889041060,-54.8888506,0.00013955,2]
[353500139,1739889041070,-458.2161494,0.00013955,2]
[353500141,1739889041081,-41.7838506,0.00013955,2]
[353500143,1739889041091,-1467.15,0.00013955,2]
[353500145,1739889041100,-151.0,0.00013955,2]
[353500147,1739889041110,-3429.91,0.00013955,2]
[353500149,1739889041119,-151.0,0.00013955,2]
[353500151,1739889041128,-397.19894965,0.00013955,2]
[353500347,1739889043056,-1039.18105035,0.00013955,2]
[353500349,1739889043065,-500.0,0.00013955,2]
[353500351,1739889043075,-500.0,0.00013955,2]
[353500353,1739889043084,-500.0,0.00013955,2]
[353500355,1739889043093,-500.0,0.00013955,2]
[353500357,1739889043103,-801.61722965,0.00013955,2]
[353500655,1739889045979,-1000.0,0.00013955,2]
[353500657,1739889045991,-292.55277035,0.00013955,2]
[353500659,1739889046001,-830.8,0.00013955,2]
[353500661,1739889046011,-952.08,0.00013955,2]
[353500663,1739889046021,-500.0,0.00013955,2]
[353500665,1739889046031,-539.57,0.00013955,2]
[353500667,1739889046040,-500.0,0.00013955,2]
[353500669,1739889046050,-500.0,0.00013955,2]
[353500671,1739889046060,-2148.27,0.00013955,2]
[353500674,1739889046070,-569.52,0.00013955,2]
[353500677,1739889046079,-500.0,0.00013955,2]
[353500679,1739889046088,-151.0,0.00013955,2]
[353500681,1739889046098,-151.0,0.00013955,2]
[353500683,1739889046108,-500.0,0.00013955,2]
[353500685,1739889046118,-151.0,0.00013955,2]
[353500687,1739889046127,-500.0,0.00013956,2]
[353500688,1739889046136,-500.0,0.00013956,2]
[353500691,1739889046146,-500.0,0.00013956,2]
[353500692,1739889046156,-500.0,0.00013956,2]
[353500695,1739889046166,-500.0,0.00013956,2]
[353500697,1739889046176,-500.0,0.00013956,2]
[353500698,1739889046187,-500.0,0.00013956,2]
[353500701,1739889046196,-500.0,0.00013956,2]
[353500702,1739889046206,-500.0,0.00013956,2]
[353500705,1739889046216,-500.0,0.00013956,2]
[353500707,1739889046229,-500.0,0.00013956,2]
[353500708,1739889046239,-585.07,0.00013956,2]
[353500710,1739889046249,-500.0,0.00013956,2]
[353500712,1739889046260,-500.0,0.00013956,2]
[353500714,1739889046270,-500.0,0.00013956,2]
[353500716,1739889046280,-500.0,0.00013956,2]
[353500718,1739889046290,-259.76,0.00013956,2]
[353500720,1739889046299,-390.73,0.00013956,2]
[353500723,1739889046309,-500.0,0.00013956,2]
[353500724,1739889046319,-376.09539552,0.00013956,2]
[353500726,1739889046328,-500.0,0.00013956,2]
[353500728,1739889046338,-500.0,0.00013956,2]
[353500730,1739889046348,-500.0,0.00013956,2]
[353500732,1739889046358,-572.59,0.00013956,2]
[353500734,1739889046368,-500.0,0.00013956,2]
[353500736,1739889046377,-500.0,0.00013956,2]
[353500738,1739889046387,-500.0,0.00013956,2]
[353500740,1739889046397,-500.0,0.00013956,2]